bitfinex-derivatives/quotes_BTCF0:USTF0_20260106
["timestamp","ask_amount","ask_price","bid_price","bid_amount"]
[1767708951799,0.09024,94234.0,94223.0,0.010615]
[1767708951993,0.09024,94234.0,94220.0,0.09121068]
[1767708952295,0.09024,94234.0,94224.0,0.010615]
[1767708952696,0.09024,94241.0,94224.0,0.010615]
[1767708952995,0.09024,94241.0,94216.0,0.010616]
[1767708952996,0.00936254,94236.0,94216.0,0.010616]
[1767708953197,0.00936254,94231.0,94216.0,0.010616]
[1767708953496,0.00936254,94231.0,94225.0,0.010615]
[1767708953695,0.09024,94241.0,94221.0,0.010615]
[1767708954202,0.09024,94241.0,94221.0,0.00963408]
[1767708954403,0.09024,94241.0,94226.0,0.010615]
[1767708954596,0.18324,94246.0,94211.0,0.010617]
[1767708954597,0.09242872,94250.0,94229.0,0.010614]
[1767708954790,0.010612,94248.0,94225.0,0.010615]
[1767708954992,0.010612,94248.0,94227.0,0.010615]
[1767708955297,0.010613,94245.0,94225.0,0.010615]
[1767708956202,0.00936254,94244.0,94225.0,0.010615]
[1767708956390,0.0093183,94240.0,94225.0,0.010615]
[1767708956592,0.10537993,94240.0,94225.0,0.010615]
[1767708956907,0.10537993,94240.0,94221.0,0.010615]
[1767708957398,0.0093183,94240.0,94232.0,0.010614]
[1767708957699,0.10537993,94243.0,94218.0,0.00920415]
[1767708957892,0.10537993,94241.0,94218.0,0.00920415]
[1767708958295,0.10537993,94241.0,94227.0,0.010615]
[1767708958698,0.10537993,94241.0,94224.0,0.010615]
[1767708958893,0.10537993,94241.0,94218.0,0.00920415]
[1767708959093,0.10537993,94241.0,94226.0,0.010615]
[1767708959298,0.09024,94249.0,94226.0,0.00920415]
[1767708959299,0.0093183,94248.0,94226.0,0.00920415]
[1767708959509,0.0199313,94248.0,94228.0,0.010615]
[1767708959708,0.11599293,94248.0,94228.0,0.010615]
[1767708960090,0.10667463,94246.0,94228.0,0.010615]
[1767708960291,0.10667463,94246.0,94215.0,0.09402464]
[1767708960292,0.09606163,94233.0,94217.0,0.010616]
[1767708960590,0.09606163,94233.0,94215.0,0.09402464]
[1767708960591,0.09024,94241.0,94229.0,0.010615]
[1767708960794,0.09024,94243.0,94229.0,0.010615]
[1767708960990,0.09024,94247.0,94231.0,0.00920415]
[1767708961201,0.09024,94247.0,94230.0,0.13540921]
[1767708961202,0.09024,94251.0,94234.0,0.010614]
[1767708961593,0.09024,94251.0,94233.0,0.00920415]
[1767708961594,0.0900042,94250.0,94231.0,0.010614]
[1767708961797,0.1006172,94246.0,94228.0,0.010615]
[1767708961999,0.0900042,94246.0,94227.0,0.15871501]
[1767708962195,0.0900042,94241.0,94229.0,0.15907931]
[1767708962400,0.0900042,94239.0,94217.0,0.09402464]
[1767708962702,0.0900042,94239.0,94191.0,0.010619]
[1767708962703,0.07917775,94224.0,94214.0,5.6e-07]
[1767708962896,0.010616,94218.0,94205.0,0.09402464]
[1767708963091,0.010616,94218.0,94201.0,0.10391178]
[1767708963305,0.010614,94234.0,94201.0,0.00988714]
[1767708963504,0.13540921,94220.0,94204.0,0.09402464]
[1767708963799,0.010616,94213.0,94201.0,0.15882881]
[1767708963996,0.010617,94211.0,94201.0,0.15882881]
[1767708964196,0.09024,94215.0,94197.0,0.09402464]
[1767708964499,0.010615,94229.0,94209.0,0.010617]
[1767708964704,0.09024,94228.0,94212.0,0.00988714]
[1767708965004,0.010614,94230.0,94212.0,0.00988714]
[1767708965005,0.100854,94230.0,94212.0,0.00988714]
[1767708965406,0.09024,94230.0,94212.0,0.00988714]
[1767708965705,0.500855,94230.0,94206.0,0.010617]
[1767708965906,0.100855,94230.0,94206.0,0.010617]
[1767708966301,0.010614,94238.0,94218.0,0.010616]
[1767708966605,0.09024,94237.0,94221.0,0.00988714]
[1767708966800,0.09024,94237.0,94228.0,0.010615]
[1767708967107,0.36320182,94259.0,94228.0,0.010615]
[1767708967108,0.09024,94242.0,94228.0,0.00988714]
[1767708967694,0.09024,94242.0,94229.0,0.010615]
[1767708968094,0.09024,94242.0,94235.0,0.00988714]
[1767708968297,0.4704,94258.0,94223.0,0.09029413]
[1767708968298,0.010612,94257.0,94237.0,0.00988714]
[1767708968604,0.010612,94253.0,94237.0,0.00988714]
[1767708968806,0.49024,94258.0,94229.0,0.00988714]
[1767708968993,0.010613,94243.0,94222.0,0.010615]
[1767708969194,0.010613,94240.0,94221.0,0.00988714]
[1767708969500,0.100853,94241.0,94225.0,0.00988714]
[1767708969703,0.09024,94241.0,94225.0,0.00988714]
[1767708969905,0.09024,94241.0,94231.0,0.010614]
[1767708970103,0.09024,94242.0,94234.0,0.010614]
[1767708970309,0.09024,94243.0,94234.0,0.010614]
[1767708970696,0.09024,94243.0,94230.0,0.010614]
[1767708970893,0.09024,94248.0,94227.0,0.00988714]
[1767708971098,0.09024,94247.0,94233.0,0.010614]
[1767708971302,0.09024,94247.0,94219.0,0.010616]
[1767708971303,0.09024,94247.0,94230.0,0.00988714]
[1767708971505,0.010613,94244.0,94230.0,0.00988714]
[1767708971697,0.010613,94244.0,94225.0,0.010615]
[1767708972109,0.09024,94247.0,94226.0,0.15947902]
[1767708972310,0.010614,94235.0,94226.0,0.15947902]
[1767708972603,0.09024,94247.0,94223.0,0.15947902]
[1767708972804,0.49024,94247.0,94214.0,0.00988714]
[1767708973104,0.49024,94247.0,94205.0,0.09029413]
[1767708973105,0.09024,94247.0,94211.0,0.00988714]
[1767708973306,0.010615,94229.0,94211.0,0.00988714]
[1767708973505,0.100854,94232.0,94211.0,0.02050414]
[1767708973711,0.09024,94232.0,94211.0,0.00988714]
[1767708973897,0.09024,94232.0,94216.0,0.00988714]
[1767708974810,0.09024,94232.0,94210.0,0.09029413]
[1767708974811,0.09024,94232.0,94218.0,0.00988714]
[1767708975415,0.09024,94232.0,94215.0,0.09402464]
[1767708975416,0.010615,94228.0,94215.0,0.09402464]
[1767708975600,0.09024,94232.0,94214.0,0.09402464]
[1767708975907,1.00898,94275.0,94206.0,0.13210039]
[1767708975908,0.09024,94231.0,94215.0,0.09402464]
[1767708976113,0.010615,94227.0,94209.0,0.00988714]
[1767708976609,0.09024,94230.0,94209.0,0.00988714]
[1767708976802,0.010615,94229.0,94210.0,0.010617]
[1767708976999,0.010615,94229.0,94211.0,0.00988714]
[1767708977404,0.010615,94227.0,94211.0,0.00988714]
[1767708977599,0.09024,94230.0,94204.0,0.10391178]
[1767708977804,0.010616,94219.0,94200.0,0.09402464]
[1767708977998,0.100856,94219.0,94207.0,0.15902391]
[1767708978202,0.100856,94219.0,94202.0,0.010618]
[1767708978403,0.11648,94243.0,94202.0,0.00988714]
[1767708978713,0.09024,94242.0,94212.0,0.010616]
[1767708978905,0.010615,94227.0,94209.0,0.010617]
[1767708979213,0.09024,94226.0,94209.0,0.010617]
[1767708979398,0.010615,94225.0,94208.0,0.00988714]
[1767708979802,0.010615,94222.0,94208.0,0.00988714]
[1767708980002,0.09024,94226.0,94208.0,0.00988714]
[1767708980210,0.09024,94226.0,94202.0,0.010618]
[1767708980411,0.010614,94235.0,94212.0,0.00988714]
[1767708980610,0.100854,94236.0,94212.0,0.02050314]
[1767708980914,0.010615,94230.0,94205.0,0.00988714]
[1767708981106,0.75576,94247.0,94208.0,0.010617]
[1767708981304,0.75576,94247.0,94205.0,0.00988714]
[1767708981305,0.09024,94246.0,94220.0,0.00988714]
[1767708981519,0.90668,94251.0,94224.0,0.00988714]
[1767708981705,0.90668,94251.0,94206.0,0.09024]
[1767708981706,0.19836065,94240.0,94180.0,0.09407877]
[1767708981905,0.010616,94220.0,94192.0,0.010619]
[1767708982112,0.09024,94219.0,94184.0,0.10091413]
[1767708982309,0.010617,94210.0,94186.0,0.09029413]
[1767708982514,0.29896,94243.0,94196.0,0.09029413]
[1767708982808,0.010614,94238.0,94201.0,0.010618]
[1767708983009,0.09024,94242.0,94203.0,0.10091213]
[1767708983010,0.010614,94239.0,94203.0,0.10091213]
[1767708983312,0.010614,94239.0,94199.0,0.09024]
[1767708983313,0.09024,94242.0,94209.0,0.09029413]
[1767708983518,0.09024,94242.0,94214.0,0.09029413]
[1767708983704,0.010612,94252.0,94220.0,0.00988714]
[1767708983908,0.09024,94253.0,94213.0,0.00988714]
[1767708983909,0.00031409,94249.0,94213.0,0.00988714]
[1767708984114,0.00031409,94242.0,94213.0,0.00988714]
[1767708984315,0.09024,94241.0,94215.0,0.00988714]
[1767708984512,0.09024,94244.0,94219.0,0.00988714]
[1767708984709,0.09024,94244.0,94221.0,0.00988714]
[1767708984916,0.09024,94244.0,94225.0,0.00988714]
[1767708985320,0.00212182,94259.0,94230.0,0.09029413]
[1767708985520,0.09024,94258.0,94233.0,0.00988714]
[1767708985919,0.09024,94258.0,94233.0,0.01201047]
[1767708986119,0.09024,94258.0,94237.0,0.00988714]
[1767708986523,0.00086074,94257.0,94229.0,0.00988714]
[1767708986818,0.00086074,94257.0,94235.0,0.00212333]
[1767708987214,0.00212182,94259.0,94235.0,0.00212333]
[1767708987215,0.00212182,94259.0,94235.0,0.01201047]
[1767708987621,0.00212182,94259.0,94237.0,0.00988714]
[1767708987823,0.00212182,94259.0,94238.0,0.00988714]
[1767708988126,0.00212182,94259.0,94239.0,0.00988714]
[1767708988321,0.00212182,94259.0,94243.0,0.00988714]
[1767708988517,8.2e-07,94259.0,94245.0,0.10018127]
[1767708988825,8.2e-07,94259.0,94235.0,0.00212333]
[1767708988826,0.01279369,94283.0,94253.0,0.00988714]
[1767708989020,0.00212115,94289.0,94255.0,0.00988714]
[1767708989222,0.0167184,94289.0,94256.0,0.00988714]
[1767708989413,0.02314011,94282.0,94256.0,0.10012714]
[1767708989616,0.010608,94288.0,94257.0,0.00988714]
[1767708989910,0.010608,94285.0,94260.0,0.00988714]
[1767708990114,0.010609,94279.0,94245.0,0.09029413]
[1767708990310,0.02775593,94278.0,94247.0,0.00212333]
[1767708990517,0.02314011,94270.0,94245.0,0.15883402]
[1767708990718,0.02314011,94258.0,94233.0,0.09024]
[1767708990924,0.02314011,94254.0,94228.0,0.09024]
[1767708991318,0.02481622,94252.0,94224.0,0.15887981]
[1767708991514,0.010613,94248.0,94221.0,0.09024]
[1767708991717,0.09024,94252.0,94223.0,0.09450765]
[1767708991913,0.09024,94252.0,94223.0,0.10512265]
[1767708992122,0.09024,94252.0,94224.0,0.00993256]
[1767708992430,0.02481622,94249.0,94222.0,0.09024]
[1767708992630,0.010612,94248.0,94220.0,0.09024]
[1767708992817,0.02481622,94249.0,94220.0,0.09024]
[1767708993019,0.02481622,94249.0,94220.0,0.10017256]
[1767708993323,0.02786649,94245.0,94220.0,0.09024]
[1767708993528,0.010613,94245.0,94220.0,0.10017256]
[1767708994232,0.03385576,94251.0,94221.0,0.00993256]
[1767708995920,0.02324376,94251.0,94221.0,0.00993256]
[1767708996225,0.09024,94252.0,94227.0,0.00993256]
[1767708996423,0.09024,94253.0,94235.0,0.00993256]
[1767708996634,0.09024,94255.0,94235.0,0.00993256]
[1767708997034,0.09024,94255.0,94236.0,0.00212333]
[1767708997236,0.010612,94254.0,94236.0,0.00212333]
[1767708997533,0.02630383,94254.0,94227.0,0.09024]
[1767708997731,0.010612,94251.0,94226.0,0.01205589]
[1767708997921,0.02630383,94249.0,94220.0,0.09024]
[1767708998122,0.01569183,94249.0,94221.0,0.01205589]
[1767708998437,0.09024,94255.0,94224.0,0.00993256]
[1767708998637,0.09024,94255.0,94227.0,0.00993256]
[1767708998830,0.11654383,94255.0,94227.0,0.00993256]
[1767708999034,0.01569183,94250.0,94222.0,0.010615]
[1767708999239,0.01569183,94250.0,94222.0,0.02267089]
[1767708999439,0.01972724,94249.0,94222.0,0.17139217]
[1767708999738,0.010613,94248.0,94222.0,0.17139217]
[1767709000225,0.01561321,94248.0,94224.0,0.010615]
[1767709000432,0.010612,94253.0,94224.0,0.02054756]
[1767709000734,0.010612,94251.0,94225.0,0.00993256]
[1767709001430,0.010613,94247.0,94225.0,0.00993256]
[1767709001925,0.02622521,94252.0,94225.0,0.00993256]
[1767709002130,0.01561321,94252.0,94229.0,0.010614]
[1767709002328,0.01561321,94252.0,94227.0,0.010615]
[1767709002629,0.01561321,94252.0,94228.0,0.00993256]
[1767709002831,0.010613,94248.0,94228.0,0.00993256]
[1767709003132,0.01561321,94252.0,94228.0,0.00993256]
[1767709003320,0.01561321,94252.0,94228.0,0.02054756]
[1767709003724,0.01472503,94257.0,94230.0,0.02054656]
[1767709004027,0.010612,94255.0,94232.0,0.00993256]
[1767709004226,0.010612,94255.0,94220.0,0.18474765]
[1767709004227,0.010613,94247.0,94226.0,0.00212333]
[1767709004430,0.010612,94252.0,94226.0,0.00212333]
[1767709004732,0.010612,94252.0,94227.0,0.00993256]
[1767709004937,0.010612,94249.0,94227.0,0.00993256]
[1767709005520,0.0173842,94253.0,94228.0,0.010615]
[1767709005521,0.0279962,94253.0,94228.0,0.010615]
[1767709005724,0.0279962,94253.0,94231.0,0.010614]
[1767709006132,0.0279962,94253.0,94227.0,0.02054756]
[1767709006532,0.010612,94250.0,94227.0,0.02054756]
[1767709006728,0.0173842,94253.0,94231.0,0.010614]
[1767709006931,0.010612,94252.0,94231.0,0.010614]
[1767709007334,0.02715154,94252.0,94227.0,0.02054756]
[1767709007932,0.010612,94249.0,94227.0,0.02054756]
[1767709008138,0.01653954,94252.0,94229.0,0.02054656]
[1767709008440,0.09024,94251.0,94229.0,0.02054656]
[1767709009023,0.010612,94250.0,94229.0,0.02054656]
[1767709009229,0.01653954,94250.0,94226.0,0.00212333]
[1767709009838,0.02728131,94240.0,94219.0,0.010616]
[1767709010040,0.01454498,94235.0,94213.0,0.00993256]
[1767709010241,0.01872935,94231.0,94211.0,8.521e-05]
[1767709010429,0.01454498,94230.0,94211.0,8.521e-05]
[1767709010624,0.01454498,94230.0,94215.0,0.010616]
[1767709010832,0.09024,94229.0,94214.0,0.00993256]
[1767709011026,0.010614,94239.0,94217.0,0.010616]
[1767709011233,0.09024,94238.0,94219.0,0.010616]
[1767709011431,0.010614,94237.0,94219.0,0.010616]
[1767709012241,0.1048182,94238.0,94214.0,0.00993256]
[1767709012743,0.010614,94237.0,94214.0,0.00993256]
[1767709012944,0.010614,94237.0,94218.0,0.010616]
[1767709013846,0.1154322,94238.0,94217.0,0.010616]
[1767709014050,0.010614,94236.0,94217.0,0.010616]
[1767709014743,0.010614,94234.0,94214.0,0.02054856]
[1767709014946,0.01091908,94235.0,94214.0,0.00993256]
[1767709015331,0.010614,94233.0,94215.0,0.010616]
[1767709015532,0.01062845,94232.0,94212.0,0.010616]
[1767709015733,0.010614,94237.0,94212.0,0.00993256]
[1767709016050,0.010614,94237.0,94217.0,0.010616]
[1767709016554,0.09024,94238.0,94220.0,0.010616]
[1767709017051,0.01062845,94237.0,94212.0,0.00993256]
[1767709017247,0.01062845,94237.0,94214.0,0.010616]
[1767709017446,0.01062845,94237.0,94215.0,0.00941968]
[1767709018046,0.010615,94230.0,94211.0,8.521e-05]
[1767709018243,0.006608,94223.0,94200.0,0.00941968]
[1767709018445,0.010617,94210.0,94192.0,0.00941968]
[1767709018746,0.010617,94210.0,94184.0,0.08340203]
[1767709018747,0.09993084,94208.0,94184.0,0.00941968]
[1767709018946,0.010617,94211.0,94176.0,0.00941968]
[1767709018947,0.09993084,94201.0,94176.0,0.00941968]
[1767709019141,0.09993084,94191.0,94165.0,0.00941968]
[1767709019336,0.010621,94169.0,94154.0,0.00941968]
[1767709019542,0.09034308,94168.0,94146.0,0.00941968]
[1767709019741,0.09024,94167.0,94146.0,0.00941968]
[1767709019950,0.09024,94167.0,94152.0,0.010623]
[1767709020149,0.09024,94167.0,94146.0,0.00941968]
[1767709020446,0.09024,94182.0,94167.0,0.00941968]
[1767709020648,0.09024,94182.0,94142.0,0.010624]
[1767709020649,0.09993084,94181.0,94159.0,0.00941968]
[1767709021158,0.01062,94180.0,94159.0,0.00941968]
[1767709021338,0.09993084,94181.0,94159.0,0.00941968]
[1767709021650,0.09028,94180.0,94159.0,0.00941968]
[1767709021948,0.08492229,94196.0,94174.0,0.010621]
[1767709022154,0.09028,94195.0,94173.0,0.01971093]
[1767709022337,0.90284,94220.0,94173.0,0.01971093]
[1767709022338,0.08734853,94205.0,94173.0,0.00908993]
[1767709022539,0.08492229,94191.0,94164.0,0.00908993]
[1767709022745,0.010619,94187.0,94164.0,0.00908993]
[1767709023244,0.01062,94185.0,94164.0,0.00908993]
[1767709024052,0.010621,94176.0,94164.0,0.00908993]
[1767709024255,0.09028,94177.0,94155.0,0.00908993]
[1767709024445,0.09028,94176.0,94155.0,0.00908993]
[1767709024653,0.09028,94176.0,94156.0,0.16742919]
[1767709024953,0.09028,94191.0,94178.0,0.00908993]
[1767709025156,0.07683767,94189.0,94164.0,0.00908993]
[1767709025352,0.09028,94188.0,94171.0,0.00908993]
[1767709025545,0.010618,94202.0,94171.0,0.00908993]
[1767709025546,0.09028,94187.0,94173.0,0.00908993]
[1767709025747,0.09028,94187.0,94176.0,0.01062]
[1767709026147,0.010618,94199.0,94176.0,0.01062]
[1767709026359,0.09028,94198.0,94176.0,0.01062]
[1767709026568,0.010618,94197.0,94173.0,0.00908993]
[1767709026761,0.100898,94198.0,94175.0,0.010621]
[1767709027052,0.09028,94198.0,94184.0,0.00908993]
[1767709027252,0.09028,94203.0,94187.0,0.00908993]
[1767709027458,0.09028,94202.0,94192.0,0.00908993]
[1767709027649,0.010617,94210.0,94192.0,0.00908993]
[1767709027850,0.010616,94214.0,94192.0,0.00908993]
[1767709028061,0.010617,94208.0,94186.0,0.01970893]
[1767709028253,0.010615,94230.0,94156.0,0.08688558]
[1767709028254,0.09028,94210.0,94198.0,0.01970793]
[1767709028559,0.09028,94212.0,94199.0,0.00908993]
[1767709028749,0.09028,94211.0,94199.0,0.00908993]
[1767709028949,0.09028,94210.0,94203.0,0.010618]
[1767709029253,0.09028,94210.0,94199.0,0.00908993]
[1767709029254,0.09028,94210.0,94200.0,0.00908993]
[1767709029754,0.010616,94215.0,94200.0,0.00908993]
[1767709029959,0.010617,94210.0,94191.0,0.00908993]
[1767709030350,0.09028,94209.0,94191.0,0.00908993]
[1767709031251,0.08030583,94224.0,94201.0,0.01970793]
[1767709031252,0.010615,94223.0,94201.0,0.01970793]
[1767709031445,0.010616,94221.0,94201.0,0.01970793]
[1767709031646,0.010616,94221.0,94201.0,0.00908993]
[1767709031959,0.010616,94214.0,94201.0,0.00908993]
[1767709032160,0.010616,94218.0,94201.0,0.00908993]
[1767709032561,0.010616,94215.0,94201.0,0.00908993]
[1767709032762,0.17412602,94222.0,94193.0,0.00908993]
[1767709032962,0.010616,94215.0,94193.0,0.00908993]
[1767709033460,0.010616,94221.0,94203.0,0.00908993]
[1767709033659,0.010616,94218.0,94203.0,0.00908993]
[1767709034362,0.09028,94222.0,94203.0,0.00908993]
[1767709034547,0.08291116,94237.0,94206.0,0.00908993]
[1767709034753,0.09028,94228.0,94209.0,0.010617]
[1767709034956,0.09028,94227.0,94215.0,0.00908993]
[1767709035750,0.09028,94230.0,94219.0,0.00908993]
[1767709035964,0.08291116,94244.0,94219.0,0.00908993]
[1767709036152,0.00200672,94252.0,94223.0,0.01970493]
[1767709036153,0.100893,94243.0,94223.0,0.01970493]
[1767709036357,0.09028,94242.0,94223.0,0.00908993]
[1767709036859,0.010613,94241.0,94223.0,0.00908993]
[1767709037454,0.010613,94240.0,94223.0,0.00908993]
[1767709037664,0.09028,94242.0,94223.0,0.00908993]
[1767709037860,0.010613,94241.0,94223.0,0.00908993]
[1767709038067,0.010614,94239.0,94223.0,0.00908993]
[1767709038367,0.07970755,94239.0,94213.0,0.00908993]
[1767709038555,0.08178615,94233.0,94205.0,0.01860788]
[1767709038755,0.07970755,94235.0,94206.0,0.16773526]
[1767709038964,0.07970755,94235.0,94210.0,0.00908993]
[1767709039162,0.010615,94228.0,94215.0,0.00908993]
[1767709039362,0.010615,94230.0,94215.0,0.00908993]
[1767709039561,0.09028,94234.0,94215.0,0.00908993]
[1767709039762,0.07970755,94235.0,94215.0,0.00908993]
[1767709039962,0.09028,94234.0,94215.0,0.00908993]
[1767709040164,0.010615,94229.0,94215.0,0.00908993]
[1767709040358,0.09028,94234.0,94207.0,0.00908993]
[1767709040559,0.010616,94219.0,94198.0,0.00908993]
[1767709040761,0.09028,94218.0,94202.0,0.00908993]
[1767709041067,0.010615,94223.0,94203.0,0.15856676]
[1767709041068,0.09028,94220.0,94203.0,0.15856676]
[1767709041269,0.09028,94220.0,94204.0,0.010617]
[1767709041578,0.09028,94220.0,94204.0,0.16802258]
[1767709041770,0.09028,94220.0,94204.0,0.00908993]
[1767709042272,0.08103817,94238.0,94206.0,0.00908993]
[1767709042460,0.79744,94237.0,94206.0,0.00908993]
[1767709042661,0.79744,94237.0,94207.0,0.010617]
[1767709042969,0.010615,94228.0,94207.0,0.00908993]
[1767709043165,0.09028,94236.0,94207.0,0.00908993]
[1767709043367,0.08103817,94235.0,94215.0,0.010616]
[1767709043665,0.0021673,94241.0,94215.0,0.010616]
[1767709043666,0.09028,94234.0,94215.0,0.00908993]
[1767709044070,0.09028,94234.0,94203.0,0.00908993]
[1767709044071,0.010615,94222.0,94203.0,0.00908993]
[1767709044259,0.09028,94223.0,94204.0,0.010617]
[1767709044459,0.09028,94223.0,94205.0,0.00908993]
[1767709045471,0.010616,94219.0,94205.0,0.00908993]
[1767709045873,0.010616,94216.0,94197.0,0.00908993]
[1767709046166,0.010616,94214.0,94199.0,0.16022409]
[1767709046563,0.010616,94214.0,94197.0,0.00908993]
[1767709046763,0.010616,94218.0,94197.0,0.00908993]
[1767709047070,0.010616,94218.0,94198.0,0.15973006]
[1767709047270,0.010617,94208.0,94198.0,0.15973006]
[1767709047464,0.010617,94208.0,94189.0,0.00908993]
[1767709048265,0.09028,94210.0,94181.0,0.00908993]
[1767709048266,0.010618,94202.0,94181.0,0.00908993]
[1767709048675,0.08115788,94209.0,94181.0,0.00908993]
[1767709048971,0.09028,94210.0,94173.0,0.25412722]
[1767709048972,0.08115788,94203.0,94173.0,0.00908993]
[1767709049268,0.010618,94198.0,94175.0,0.00908993]
[1767709049471,0.09028,94197.0,94175.0,0.00908993]
[1767709049974,0.09028,94197.0,94172.0,0.09028]
[1767709050173,0.09028,94197.0,94180.0,0.01062]
[1767709050375,0.09028,94200.0,94189.0,0.00908993]
[1767709050575,0.09028,94201.0,94189.0,0.00908993]
[1767709050876,0.09028,94201.0,94199.0,0.01121311]
[1767709051177,0.09028,94207.0,94199.0,0.01121311]
[1767709051369,0.09028,94208.0,94199.0,0.01121311]
[1767709051968,0.09028,94208.0,94199.0,0.00212318]
[1767709053173,0.09028,94208.0,94189.0,0.00989801]
[1767709053479,0.09028,94208.0,94190.0,0.010619]
[1767709054581,0.09028,94208.0,94190.0,0.02051701]
[1767709057777,0.09028,94197.0,94179.0,0.00989801]
[1767709058081,0.09028,94197.0,94184.0,0.01062]
[1767709058873,0.09028,94197.0,94180.0,0.00989801]
[1767709059076,0.09028,94197.0,94185.0,0.010619]
[1767709059469,0.09028,94197.0,94180.0,0.00989801]
[1767709059780,0.09028,94204.0,94192.0,0.010619]
[1767709059974,0.09028,94208.0,94192.0,0.010619]
[1767709060576,0.09028,94208.0,94194.0,0.010618]
[1767709061069,0.09028,94208.0,94191.0,0.010619]
[1767709061279,0.010617,94207.0,94188.0,0.02051701]
[1767709061482,0.09028,94208.0,94188.0,0.00989801]
[1767709061778,0.09028,94208.0,94192.0,0.010619]
[1767709062778,0.09028,94208.0,94188.0,0.00989801]
[1767709062974,0.09028,94208.0,94189.0,0.00989801]
[1767709063173,0.09028,94208.0,94196.0,0.010618]
[1767709064181,0.09028,94208.0,94199.0,0.010618]
[1767709064582,0.09989464,94226.0,94196.0,0.00989801]
[1767709064777,0.010615,94223.0,94200.0,0.00989801]
[1767709064974,0.09028,94225.0,94200.0,0.00989801]
[1767709065176,0.09028,94224.0,94203.0,0.00989801]
[1767709065383,0.100895,94224.0,94206.0,0.010617]
[1767709065783,0.010615,94222.0,94203.0,0.02051501]
[1767709066093,0.100895,94224.0,94204.0,0.010617]
[1767709066783,0.010616,94221.0,94204.0,0.010617]
[1767709067173,0.09028,94224.0,94204.0,0.010617]
[1767709067377,0.010615,94223.0,94206.0,0.010617]
[1767709067576,0.100895,94224.0,94206.0,0.010617]
[1767709068277,0.010615,94222.0,94203.0,0.010617]
[1767709069289,0.010616,94220.0,94203.0,0.010617]
[1767709069486,0.010616,94218.0,94200.0,0.010618]
[1767709069784,0.010616,94218.0,94202.0,0.010618]
[1767709070288,0.09028,94224.0,94198.0,0.00989801]
[1767709070676,0.010615,94223.0,94205.0,0.010617]
[1767709071486,0.09028,94224.0,94199.0,0.00989801]
[1767709071790,0.010616,94221.0,94205.0,0.010617]
[1767709071988,0.19017464,94224.0,94199.0,0.00989801]
[1767709072282,0.010615,94222.0,94204.0,0.010617]
[1767709072690,0.010616,94220.0,94204.0,0.010617]
[1767709072887,0.010616,94220.0,94201.0,0.010618]
[1767709073085,0.09989464,94223.0,94199.0,0.00989801]
[1767709073388,0.010616,94216.0,94199.0,0.00989801]
[1767709073581,0.010616,94216.0,94200.0,0.010618]
[1767709073990,0.09989464,94211.0,94194.0,0.10472308]
[1767709074292,0.11051164,94211.0,94197.0,0.15908755]
[1767709074588,0.09989464,94211.0,94195.0,0.09410508]
[1767709074777,0.010617,94208.0,94195.0,0.09410508]
[1767709074982,0.010617,94210.0,94198.0,0.15908755]
[1767709075294,0.010617,94210.0,94198.0,0.09410508]
[1767709075488,0.010617,94210.0,94198.0,0.16006666]
[1767709075792,0.010617,94208.0,94197.0,0.09410508]
[1767709076004,0.010617,94211.0,94197.0,0.09410508]
[1767709076287,0.010617,94211.0,94198.0,0.16006666]
[1767709076488,0.010617,94205.0,94197.0,0.0907569]
[1767709076690,0.010617,94205.0,94186.0,0.010619]
[1767709076894,0.010618,94202.0,94185.0,0.1419984]
[1767709077186,0.010618,94200.0,94185.0,0.00989801]
[1767709077996,0.09028,94213.0,94185.0,0.00989801]
[1767709078389,0.00368946,94212.0,94185.0,0.00989801]
[1767709078596,0.00368946,94212.0,94186.0,0.010619]
[1767709079104,0.010618,94203.0,94185.0,0.00989801]
[1767709079297,0.00248904,94207.0,94180.0,0.23300039]
[1767709079498,0.010618,94198.0,94180.0,0.09991407]
[1767709079798,0.010618,94199.0,94182.0,0.00963407]
[1767709080001,0.010618,94202.0,94183.0,0.00963407]
[1767709080297,0.010618,94202.0,94184.0,0.00963407]
[1767709080596,0.09028,94213.0,94193.0,0.00963407]
[1767709080597,0.010617,94210.0,94193.0,0.00963407]
[1767709080798,0.00160445,94210.0,94186.0,0.00963407]
[1767709080997,0.010618,94200.0,94186.0,0.00963407]
[1767709081389,0.010617,94205.0,94186.0,0.00963407]
[1767709081589,0.09028,94213.0,94190.0,0.00956719]
[1767709081802,0.010617,94209.0,94191.0,0.010619]
[1767709082098,0.09057002,94213.0,94192.0,0.00956719]
[1767709082296,0.09028,94213.0,94192.0,0.00956719]
[1767709082502,0.010618,94199.0,94184.0,0.00956719]
[1767709082887,0.13534179,94200.0,94181.0,0.15956195]
[1767709083092,0.010619,94193.0,94177.0,0.00956719]
[1767709083294,0.010619,94193.0,94178.0,0.15956195]
[1767709083491,0.010618,94196.0,94177.0,0.00956719]
[1767709083995,0.010618,94196.0,94178.0,0.15872311]
[1767709084192,0.09028,94201.0,94178.0,0.15872311]
[1767709084596,0.010619,94194.0,94178.0,0.1682903]
[1767709084796,0.010619,94192.0,94178.0,0.1682903]
[1767709085001,0.010619,94192.0,94178.0,0.00956719]
[1767709085202,0.010619,94192.0,94179.0,0.15971943]
[1767709085896,0.010619,94192.0,94179.0,0.16928662]
[1767709086298,0.010619,94190.0,94175.0,0.15895112]
[1767709086502,0.100899,94190.0,94174.0,0.09465082]
[1767709086894,0.01062,94182.0,94175.0,0.15963744]
[1767709087098,0.01062,94185.0,94171.0,0.09465082]
[1767709087300,0.01062,94183.0,94168.0,0.00956719]
[1767709087703,0.09028,94190.0,94168.0,0.00956719]
[1767709087704,0.010619,94186.0,94168.0,0.00956719]
[1767709087910,0.01062,94182.0,94168.0,0.00956719]
[1767709088204,0.09028,94190.0,94169.0,0.00956719]
[1767709088409,0.01062,94186.0,94169.0,0.00956719]
[1767709088910,0.09028,94190.0,94170.0,0.00956719]
[1767709089203,0.010618,94201.0,94181.0,0.01062]
[1767709089513,0.09028,94200.0,94184.0,0.00956719]
[1767709089708,0.100898,94199.0,94184.0,0.00956719]
[1767709090613,0.010618,94197.0,94184.0,0.00956719]
[1767709090906,0.010618,94197.0,94160.0,0.09028]
[1767709090907,0.09028,94196.0,94173.0,0.09465082]
[1767709091108,0.010619,94187.0,94170.0,0.10421801]
[1767709091313,0.010619,94187.0,94170.0,0.00956719]
[1767709091905,0.00012006,94193.0,94169.0,0.09465082]